fUST/lending_fUST_20260109
["ID","MTS","AMOUNT","RATE_DAILY","PERIOD"]
[401028052,1767888668545,-1606.22,0.00027945,5]
[401028053,1767888668555,-500.0,0.00027945,5]
[401028054,1767888668565,-500.0,0.00027945,5]
[401028055,1767888668575,-500.0,0.00027945,5]
[401028056,1767888668584,-494.91375327,0.00027945,5]
[401028057,1767888668593,-500.0,0.00027945,5]
[401028058,1767888668603,-309.06648338,0.00027945,5]
[401028059,1767888668613,-500.0,0.00027945,5]
[401028060,1767888668623,-625.26782642,0.00027945,5]
[401028061,1767888668633,-500.0,0.00027945,2]
[401028062,1767888668644,-500.0,0.00027945,5]
[401028063,1767888668654,-500.0,0.00027945,5]
[401028064,1767888668665,-500.0,0.00027945,5]
[401028065,1767888668675,-501.56028594,0.00027945,5]
[401028066,1767888668686,-500.0,0.00027945,5]
[401028067,1767888668696,-341.324064,0.00027945,7]
[401028068,1767888668706,-341.324064,0.00027945,7]
[401028069,1767888668716,-341.324064,0.00027945,7]
[401028070,1767888668726,-500.0,0.00027945,5]
[401028071,1767888668735,-341.324064,0.00027945,7]
[401028072,1767888668746,-500.0,0.00027945,5]
[401028073,1767888668756,-500.0,0.00027945,5]
[401028074,1767888668766,-500.0,0.00027945,5]
[401028075,1767888668776,-522.121584,0.00027945,7]
[401028076,1767888668785,-500.0,0.00027945,5]
[401028077,1767888668796,-1222.595979,0.00027945,7]
[401028078,1767888668806,-500.0,0.00027945,5]
[401028079,1767888668816,-522.121584,0.00027945,7]
[401028080,1767888668826,-1222.595979,0.00027945,7]
[401028081,1767888668836,-500.0,0.00027945,5]
[401028082,1767888668846,-1222.595979,0.00027945,7]
[401028083,1767888668856,-522.121584,0.00027945,7]
[401028084,1767888668866,-1222.595979,0.00027945,7]
[401028085,1767888668876,-522.121584,0.00027945,7]
[401028086,1767888668885,-500.0,0.00027945,5]
[401028087,1767888668895,-535.40793383,0.00027945,5]
[401028088,1767888668904,-151.0,0.00027945,7]
[401028089,1767888668914,-151.0,0.00027945,7]
[401028090,1767888668926,-157.291642,0.00027945,7]
[401028091,1767888668935,-500.0,0.00027945,5]
[401028092,1767888668945,-1384.74,0.00027945,5]
[401028093,1767888668955,-183.558633,0.00027945,7]
[401028094,1767888668965,-500.0,0.00027945,5]
[401028095,1767888668975,-183.558633,0.00027945,7]
[401028096,1767888668985,-183.558633,0.00027945,7]
[401028097,1767888668995,-183.558633,0.00027945,7]
[401028098,1767888669005,-500.0,0.00027945,5]
[401028099,1767888669015,-510.49,0.00027945,5]
[401028100,1767888669025,-155.515996,0.00027945,7]
[401028101,1767888669034,-500.0,0.00027945,5]
[401028102,1767888669043,-151.0,0.00027945,7]
[401028103,1767888669054,-500.0,0.00027945,5]
[401028104,1767888669064,-154.07937,0.00027945,7]
[401028105,1767888669074,-500.0,0.00027945,5]
[401028106,1767888669083,-500.0,0.00027945,5]
[401028107,1767888669093,-213.52784252,0.00027945,5]
[401028108,1767888669103,-500.0,0.00027945,5]
[401028109,1767888669112,-591.17750632,0.00027945,5]
[401028110,1767888669251,-476.4242499,0.00027945,5]
[401028111,1767888669263,-500.0,0.00027945,5]
[401028112,1767888669274,-757.340513,0.00027945,7]
[401028113,1767888669284,-500.0,0.00027945,5]
[401028114,1767888669294,-500.0,0.00027945,5]
[401028115,1767888669304,-757.340513,0.00027945,7]
[401028116,1767888669314,-369.44286709,0.00027945,5]
[401028117,1767888669328,-500.0,0.00027945,5]
[401028118,1767888669339,-757.340513,0.00027945,7]
[401028119,1767888669349,-757.340513,0.00027945,7]
[401028120,1767888669359,-500.65,0.00027945,5]
[401028121,1767888669370,-248.949077,0.00027945,7]
[401028122,1767888669379,-548.74710451,0.00027945,5]
[401028123,1767888669389,-248.949077,0.00027945,7]
[401028124,1767888669399,-248.949077,0.00027945,7]
[401028125,1767888669409,-500.0,0.00027945,5]
[401028126,1767888669420,-248.949077,0.00027945,7]
[401028127,1767888669430,-500.0,0.00027945,5]
[401028128,1767888669440,-189.80187746,0.00027945,5]
[401028129,1767888669450,-500.0,0.00027945,5]
[401028130,1767888669459,-500.0,0.00027945,5]
[401028131,1767888669469,-4093.0,0.00027945,5]
[401028132,1767888669478,-5111.69,0.00027945,5]
[401028133,1767888669489,-200.0,0.00027945,5]
[401028134,1767888669500,-489.65648126,0.00027945,5]
[401028135,1767888669510,-500.0,0.00027945,5]
[401028136,1767888669520,-151.0,0.00027945,7]
[401028137,1767888669529,-9194.49,0.00027945,3]
[401028138,1767888669539,-500.0,0.00027945,5]
[401028139,1767888669549,-2391.210697,0.00027945,7]
[401028140,1767888669559,-2391.210697,0.00027945,7]
[401028141,1767888669569,-151.0,0.00027945,7]
[401028142,1767888669578,-2391.210697,0.00027945,7]
[401028143,1767888669588,-151.0,0.00027945,7]
[401028144,1767888669598,-2391.210697,0.00027945,7]
[401028145,1767888669608,-500.0,0.00027945,5]
[401028146,1767888669618,-513.23834307,0.00027945,5]
[401028147,1767888669628,-500.0,0.00027945,5]
[401028148,1767888669637,-2464.53,0.00027945,5]
[401028149,1767888669648,-513.56456533,0.00027945,5]
[401028150,1767888669658,-212.64930527,0.00027945,5]
[401028151,1767888669668,-547.79428067,0.00027945,5]
[401028152,1767888669678,-507.76906837,0.00027945,5]
[401028153,1767888669689,-172.705914,0.00027945,7]
[401028154,1767888669700,-500.0,0.00027945,5]
[401028155,1767888669710,-500.0,0.00027945,5]
[401028156,1767888669721,-172.705914,0.00027945,7]
[401028157,1767888669732,-172.705914,0.00027945,7]
[401028158,1767888669742,-172.705914,0.00027945,7]
[401028159,1767888669752,-500.0,0.00027945,5]
[401028160,1767888669763,-500.0,0.00027945,5]
[401028161,1767888669773,-171.590843,0.00027945,7]
[401028162,1767888669783,-500.0,0.00027945,5]
[401028163,1767888669793,-151.0,0.00027945,7]
[401028164,1767888669804,-536.06822628,0.00027945,5]
[401028165,1767888669815,-182.749737,0.00027945,7]
[401028166,1767888669825,-500.0,0.00027945,5]
[401028167,1767888669835,-500.0,0.00027945,5]
[401028168,1767888669845,-500.0,0.00027945,5]
[401028169,1767888669854,-1284.28,0.00027945,5]
[401028170,1767888669864,-182.749737,0.00027945,7]
[401028171,1767888669874,-182.749737,0.00027945,7]
[401028172,1767888669885,-182.749737,0.00027945,7]
[401028173,1767888669895,-500.0,0.00027945,5]
[401028174,1767888669905,-516.95,0.00027945,5]
[401028175,1767888669916,-500.0,0.00027945,5]
[401028176,1767888669926,-500.0,0.00027945,5]
[401028177,1767888669937,-500.0,0.00027945,5]
[401028178,1767888669947,-1000.0,0.00027945,2]
[401028179,1767888669957,-500.0,0.00027945,5]
[401028180,1767888669967,-224.40722067,0.00027945,5]
[401028181,1767888669977,-500.0,0.00027945,5]
[401028182,1767888669987,-500.0,0.00027945,5]
[401028183,1767888669997,-500.0,0.00027945,5]
[401028184,1767888670007,-568.90360566,0.00027945,5]
[401028185,1767888670017,-500.0,0.00027945,5]
[401028186,1767888670027,-639.47369251,0.00027945,5]
[401028187,1767888670037,-500.0,0.00027945,5]
[401028188,1767888670046,-500.0,0.00027945,5]
[401028189,1767888670056,-500.0,0.00027945,5]
[401028190,1767888670066,-500.0,0.00027945,5]
[401028191,1767888670076,-1000.0,0.00027945,5]
[401028192,1767888670087,-600.0,0.00027945,5]
[401028193,1767888670097,-750.0,0.00027945,5]
[401028194,1767888670107,-250.0,0.00027945,5]
[401028195,1767888670117,-250.0,0.00027945,5]
[401028196,1767888670127,-438.0,0.00027946,2]
[401028197,1767888670138,-2373.26906487,0.00027962,2]
[401028198,1767888670148,-2105.41764886,0.00027972,2]
[401028199,1767888670158,-1200.0,0.00027992,7]
[401028200,1767888670167,-14599.0,0.00028,5]
[401028201,1767888670177,-1041.66666667,0.00028,7]
[401028202,1767888670187,-417.0,0.0002801,2]
[401028203,1767888670197,-417.0,0.0002801,2]
[401028204,1767888670206,-714.0,0.0002801,2]
[401028205,1767888670216,-195.337,0.0002801,2]
[401028206,1767888670227,-438.0,0.00028083,2]
[401028207,1767888670239,-2000.0,0.00028099,7]
[401028208,1767888670248,-500.0,0.00028143,7]
[401028209,1767888670258,-1000.0,0.00028147,30]
[401028210,1767888670268,-1000.0,0.00028147,30]
[401028211,1767888670278,-1000.0,0.00028147,30]
[401028212,1767888670288,-5000.0,0.00028191,2]
[401028213,1767888670297,-20550.55,0.000282,2]
[401028214,1767888670307,-3851.05736369,0.00028219,5]
[401028215,1767888670317,-500.0,0.00028219,5]
[401028216,1767888670327,-504.06016776,0.00028219,5]
[401028217,1767888670339,-500.0,0.00028219,5]
[401028218,1767888670349,-500.0,0.00028219,5]
[401028219,1767888670358,-500.0,0.00028219,5]
[401028220,1767888670368,-500.0,0.00028219,5]
[401028221,1767888670378,-500.0,0.00028219,5]
[401028222,1767888670387,-500.0,0.00028219,5]
[401028223,1767888670397,-500.0,0.00028219,5]
[401028224,1767888670408,-246.13109343,0.00028219,5]
[401028225,1767888670418,-500.0,0.00028219,5]
[401028226,1767888670428,-191.45051488,0.00028219,5]
[401028227,1767888670439,-346.66874356,0.00028219,5]
[401028228,1767888670449,-258.88162508,0.00028219,5]
[401028229,1767888670459,-500.0,0.00028219,5]
[401028230,1767888670469,-500.0,0.00028219,5]
[401028231,1767888670478,-500.0,0.00028219,5]
[401028232,1767888670491,-500.0,0.00028219,5]
[401028233,1767888670502,-500.0,0.00028219,5]
[401028234,1767888670512,-500.0,0.00028219,5]
[401028235,1767888670522,-445.52052466,0.00028219,5]
[401028236,1767888670532,-612.41440878,0.00028219,5]
[401028237,1767888670542,-234.54664061,0.00028219,5]
[401028238,1767888670552,-151.0,0.00028219,7]
[401028239,1767888670561,-189.52321417,0.00028219,5]
[401028240,1767888670571,-500.0,0.00028219,5]
[401028241,1767888670580,-560.91595719,0.00028219,5]
[401028242,1767888670590,-500.0,0.00028219,5]
[401028243,1767888670600,-151.0,0.00028219,7]
[401028244,1767888670610,-268.53624547,0.00028219,5]
[401028245,1767888670620,-500.0,0.00028219,5]
[401028246,1767888670630,-203.27492284,0.00028219,5]
[401028247,1767888670640,-151.0,0.00028219,7]
[401028248,1767888670649,-582.07234526,0.00028219,5]
[401028249,1767888670658,-500.0,0.00028219,5]
[401028250,1767888670668,-500.0,0.00028219,2]
[401028251,1767888670678,-151.0,0.00028219,7]
[401028252,1767888670688,-500.0,0.00028219,5]
[401028253,1767888670699,-500.0,0.00028219,5]
[401028254,1767888670708,-500.0,0.00028219,5]
[401028255,1767888670717,-579.73533389,0.00028219,5]
[401028256,1767888670727,-530.61560134,0.00028219,5]
[401028257,1767888670740,-500.0,0.00028219,5]
[401028258,1767888670751,-500.0,0.00028219,5]
[401028259,1767888670760,-258.34773752,0.00028219,5]
[401028260,1767888670770,-500.0,0.00028219,5]
[401028261,1767888670780,-500.0,0.00028219,5]
[401028262,1767888670789,-500.0,0.00028219,5]
[401028263,1767888670799,-405.74258488,0.00028219,5]
[401028264,1767888670808,-500.0,0.00028219,5]
[401028265,1767888670817,-533.06761859,0.00028219,5]
[401028266,1767888670826,-500.0,0.00028219,5]
[401028267,1767888670836,-588.98842258,0.00028219,5]
[401028268,1767888670845,-500.0,0.00028219,5]
[401028269,1767888670856,-500.0,0.00028219,5]
[401028270,1767888670866,-500.0,0.00028219,5]
[401028271,1767888670875,-500.0,0.00028219,5]
[401028272,1767888670885,-500.0,0.00028219,5]
[401028273,1767888670895,-500.0,0.00028219,5]
[401028274,1767888670904,-568.57666339,0.00028219,5]
[401028275,1767888670914,-592.83767393,0.00028219,5]
[401028276,1767888670923,-500.0,0.00028219,5]
[401028277,1767888670934,-500.0,0.00028219,5]
[401028278,1767888670944,-500.0,0.00028219,5]
[401028279,1767888670954,-500.0,0.00028219,5]
[401028280,1767888670964,-569.17962783,0.00028219,5]
[401028281,1767888670973,-500.0,0.00028219,5]
[401028282,1767888670985,-239.50097243,0.00028219,5]
[401028283,1767888670995,-500.0,0.00028219,5]
[401028284,1767888671004,-624.26495393,0.00028219,5]
[401028285,1767888671013,-500.0,0.00028219,5]
[401028286,1767888671023,-394.17567873,0.00028219,5]
[401028287,1767888671033,-500.0,0.00028219,5]
[401028288,1767888671042,-566.54165427,0.00028219,5]
[401028289,1767888671051,-500.0,0.00028219,5]
[401028290,1767888671060,-500.0,0.00028219,5]
[401028291,1767888671069,-500.0,0.00028219,5]
[401028292,1767888671079,-648.13484506,0.00028219,5]
[401028293,1767888671087,-500.0,0.00028219,5]
[401028294,1767888671097,-631.67776339,0.00028219,5]
[401028295,1767888671106,-511.7535895,0.00028219,5]
[401028296,1767888671116,-500.0,0.00028219,5]
[401028297,1767888671125,-500.0,0.00028219,5]
[401028298,1767888671134,-500.0,0.00028219,5]
[401028299,1767888671143,-500.0,0.00028219,5]
[401028300,1767888671153,-500.0,0.00028219,5]
[401028301,1767888671162,-511.94139477,0.00028219,5]
[401028302,1767888671171,-500.0,0.00028219,5]
[401028303,1767888671181,-500.0,0.00028219,5]
[401028304,1767888671190,-500.0,0.00028219,5]
[401028305,1767888671199,-500.0,0.00028219,5]
[401028306,1767888671209,-500.0,0.00028219,5]
[401028307,1767888671219,-500.0,0.00028219,5]
[401028308,1767888671228,-500.0,0.00028219,5]
[401028309,1767888671240,-554.80006418,0.00028219,5]
[401028310,1767888671250,-262.65821996,0.00028219,5]
[401028311,1767888671260,-183.66748162,0.00028219,5]
[401028312,1767888671269,-500.0,0.00028219,5]
[401028313,1767888671279,-500.0,0.00028219,5]
[401028314,1767888671289,-374.576127,0.00028219,5]
[401028315,1767888671298,-193.50669618,0.00028219,5]
[401028316,1767888671310,-232.75439003,0.00028219,5]
[401028317,1767888671322,-357.72166932,0.00028219,5]
[401028318,1767888671335,-500.0,0.00028219,5]
[401028319,1767888671345,-500.0,0.00028219,5]
[401028320,1767888671355,-500.0,0.00028219,5]
[401028321,1767888671365,-576.90861683,0.00028219,5]
[401028322,1767888671376,-500.0,0.00028219,5]
[401028323,1767888671386,-517.63,0.00028219,5]
[401028324,1767888671395,-520.34200526,0.00028219,5]
[401028325,1767888671406,-500.0,0.00028219,5]
[401028326,1767888671415,-633.51902732,0.00028219,5]
[401028327,1767888671426,-198.56059124,0.00028219,5]
[401028328,1767888671435,-500.0,0.00028219,5]
[401028329,1767888671445,-500.0,0.00028219,5]
[401028330,1767888671454,-500.0,0.00028219,5]
[401028331,1767888671464,-500.0,0.00028219,5]
[401028332,1767888671475,-500.0,0.00028219,5]
[401028333,1767888671600,-500.0,0.00028219,5]
[401028334,1767888671611,-500.0,0.00028219,5]
[401028335,1767888671621,-516.11098729,0.00028219,5]
[401028336,1767888671631,-226.89675008,0.00028219,5]
[401028337,1767888671641,-557.97,0.00028219,5]
[401028338,1767888671651,-500.0,0.00028219,5]
[401028339,1767888671660,-512.20150664,0.00028219,5]
[401028340,1767888671669,-500.0,0.00028219,5]
[401028341,1767888671679,-500.0,0.00028219,5]
[401028342,1767888671688,-508.5629303,0.00028219,5]
[401028343,1767888671698,-500.0,0.00028219,2]
[401028344,1767888671707,-502.2384336,0.00028219,5]
[401028345,1767888671718,-513.42681652,0.00028219,5]
[401028346,1767888671729,-507.82599306,0.00028219,5]
[401028347,1767888671740,-500.0,0.00028219,5]
[401028348,1767888671750,-500.0,0.00028219,5]
[401028349,1767888671760,-565.13404802,0.00028219,5]
[401028350,1767888671770,-500.0,0.00028219,5]
[401028351,1767888671779,-500.0,0.00028219,5]
[401028352,1767888671789,-500.0,0.00028219,5]
[401028353,1767888671799,-500.0,0.00028219,5]
[401028354,1767888671808,-182.11757682,0.00028219,5]
[401028355,1767888671818,-502.07567696,0.00028219,5]
[401028356,1767888671830,-500.0,0.00028219,5]
[401028357,1767888671840,-500.0,0.00028219,5]
[401028358,1767888671850,-500.0,0.00028219,5]
[401028359,1767888671860,-590.70927829,0.00028219,5]
[401028360,1767888671870,-581.61185444,0.00028219,5]
[401028361,1767888671880,-503.77295029,0.00028219,5]
[401028362,1767888671890,-500.0,0.00028219,5]
[401028363,1767888671900,-533.07055189,0.00028219,5]
[401028364,1767888671910,-274.42783442,0.00028219,5]
[401028365,1767888671920,-509.55655031,0.00028219,5]
[401028366,1767888671929,-516.23494571,0.00028219,5]
[401028367,1767888671939,-500.0,0.00028219,5]
[401028368,1767888671948,-504.61741486,0.00028219,5]
[401028369,1767888671958,-500.0,0.00028219,5]
[401028370,1767888671968,-500.0,0.00028219,5]
[401028371,1767888671979,-500.0,0.00028219,5]
[401028372,1767888671989,-503.33413109,0.00028219,5]
[401028373,1767888671999,-500.0,0.00028219,5]
[401028374,1767888672009,-617.23,0.00028219,5]
[401028375,1767888672019,-216.88138512,0.00028219,5]
[401028376,1767888672028,-500.0,0.00028219,5]
[401028377,1767888672039,-351.83973876,0.00028219,5]
[401028378,1767888672048,-535.50673859,0.00028219,5]
[401028379,1767888672058,-2443.5,0.00028219,5]
[401028380,1767888672067,-177.29708552,0.00028219,5]
[401028381,1767888672076,-500.0,0.00028219,5]
[401028382,1767888672086,-500.0,0.00028219,5]
[401028383,1767888672096,-500.0,0.00028219,5]
[401028384,1767888672105,-261.80951398,0.00028219,5]
[401028385,1767888672115,-500.0,0.00028219,5]
[401028386,1767888672124,-500.0,0.00028219,5]
[401028387,1767888672134,-500.0,0.00028219,5]
[401028388,1767888672143,-224.49677595,0.00028219,5]
[401028389,1767888672152,-500.0,0.00028219,5]
[401028390,1767888672162,-500.0,0.00028219,5]
[401028391,1767888672171,-500.0,0.00028219,5]
[401028392,1767888672181,-500.0,0.00028219,5]
[401028393,1767888672195,-500.0,0.00028219,5]
[401028394,1767888672205,-405.41671079,0.00028219,5]
[401028395,1767888672215,-505.63299428,0.00028219,5]
[401028396,1767888672225,-258.46730873,0.00028219,5]
[401028397,1767888672235,-500.0,0.00028219,5]
[401028398,1767888672245,-500.0,0.00028219,5]
[401028399,1767888672255,-500.0,0.00028219,5]
[401028400,1767888672265,-500.0,0.00028219,5]
[401028401,1767888672275,-500.0,0.00028219,5]
[401028402,1767888672286,-507.90997943,0.00028219,5]
[401028403,1767888672296,-378.23702787,0.00028219,5]
[401028404,1767888672306,-500.0,0.00028219,5]
[401028405,1767888672316,-500.0,0.00028219,5]
[401028406,1767888672329,-500.0,0.00028219,5]
[401028407,1767888672339,-500.0,0.00028219,5]
[401028408,1767888672348,-500.0,0.00028219,5]
[401028409,1767888672359,-456.93441123,0.00028219,5]
[401028410,1767888672370,-516.10779344,0.00028219,5]
[401028411,1767888672381,-500.0,0.00028219,5]
[401028412,1767888672396,-543.05325909,0.00028219,5]
[401028413,1767888672406,-500.0,0.00028219,5]
[401028414,1767888672415,-500.0,0.00028219,5]
[401028415,1767888672426,-500.0,0.00028219,5]
[401028416,1767888672436,-500.0,0.00028219,5]
[401028417,1767888672446,-500.0,0.00028219,5]
[401028418,1767888672455,-554.43826313,0.00028219,5]
[401028419,1767888672465,-500.0,0.00028219,5]
[401028420,1767888672475,-500.0,0.00028219,5]
[401028421,1767888672485,-500.0,0.00028219,5]
[401028422,1767888672495,-572.94971159,0.00028219,5]
[401028423,1767888672505,-500.0,0.00028219,5]
[401028424,1767888672514,-336.67606086,0.00028219,5]
[401028425,1767888672525,-500.0,0.00028219,5]
[401028426,1767888672534,-545.98936392,0.00028219,5]
[401028427,1767888672547,-500.0,0.00028219,5]
[401028428,1767888672556,-223.85549054,0.00028219,5]
[401028429,1767888672566,-500.0,0.00028219,5]
[401028430,1767888672576,-1899.8,0.00028219,5]
[401028431,1767888672586,-500.0,0.00028219,5]
[401028432,1767888672595,-500.0,0.00028219,5]
[401028433,1767888672606,-500.0,0.00028219,5]
[401028434,1767888672615,-500.0,0.00028219,5]
[401028435,1767888672637,-471.96137424,0.00028219,5]
[401028436,1767888672647,-500.0,0.00028219,5]
[401028437,1767888672657,-500.0,0.00028219,5]
[401028438,1767888672667,-500.0,0.00028219,5]
[401028439,1767888672677,-500.0,0.00028219,5]
[401028440,1767888672687,-1000.0,0.00028219,2]
[401028441,1767888672697,-600.7,0.00028219,5]
[401028442,1767888672707,-574.38920734,0.00028219,5]
[401028443,1767888672717,-500.0,0.00028219,5]
[401028444,1767888672726,-1606.22,0.00028219,5]
[401028445,1767888672736,-508.93635832,0.00028219,5]
[401028446,1767888672747,-467.90203065,0.00028219,5]
[401028447,1767888672757,-500.0,0.00028219,5]
[401028448,1767888672766,-517.55874264,0.00028219,5]
[401028449,1767888672775,-500.0,0.00028219,5]
[401028450,1767888672785,-500.0,0.00028219,2]
[401028451,1767888672795,-500.0,0.00028219,5]
[401028452,1767888672804,-500.0,0.00028219,5]
[401028453,1767888672814,-501.56028594,0.00028219,5]
[401028454,1767888672823,-500.0,0.00028219,5]
[401028455,1767888672833,-500.0,0.00028219,5]
[401028456,1767888672843,-383.40274234,0.00028219,5]
[401028457,1767888672852,-500.0,0.00028219,5]
[401028458,1767888672862,-500.0,0.00028219,5]
[401028459,1767888672883,-500.0,0.00028219,5]
[401028460,1767888672894,-500.0,0.00028219,5]
[401028461,1767888672906,-434.54317177,0.00028219,5]
[401028462,1767888672916,-626.36650482,0.00028219,5]
[401028463,1767888672925,-449.5436628,0.00028219,5]
[401028464,1767888672936,-1384.74,0.00028219,5]
[401028465,1767888672946,-356.75717339,0.00028219,5]
[401028466,1767888672956,-500.0,0.00028219,5]
[401028467,1767888672966,-510.49,0.00028219,5]
[401028468,1767888672976,-500.0,0.00028219,5]
[401028469,1767888672992,-500.0,0.00028219,5]
[401028470,1767888673001,-525.62889276,0.00028219,5]
[401028471,1767888673012,-496.34552924,0.00028219,5]
[401028472,1767888673022,-500.70599479,0.00028219,5]
[401028473,1767888673031,-500.0,0.00028219,5]
[401028474,1767888673041,-599.78914801,0.00028219,5]
[401028475,1767888673051,-500.0,0.00028219,5]
[401028476,1767888673061,-500.65,0.00028219,5]
[401028477,1767888673071,-500.0,0.00028219,5]
[401028478,1767888673080,-540.57934512,0.00028219,5]
[401028479,1767888673090,-500.0,0.00028219,5]
[401028480,1767888673100,-500.0,0.00028219,5]
[401028481,1767888673110,-4093.0,0.00028219,5]
[401028482,1767888673120,-5111.69,0.00028219,5]
[401028483,1767888673129,-200.0,0.00028219,5]
[401028484,1767888673139,-304.44076821,0.00028219,5]
[401028485,1767888673149,-9194.49,0.00028219,3]
[401028486,1767888673158,-377.57227008,0.00028219,5]
[401028487,1767888673168,-500.0,0.00028219,5]
[401028488,1767888673178,-500.0,0.00028219,5]
[401028489,1767888673188,-2464.53,0.00028219,5]
[401028490,1767888673197,-620.9952859,0.00028219,5]
[401028491,1767888673207,-500.0,0.00028219,5]
[401028492,1767888673217,-500.0,0.00028219,5]
[401028493,1767888673227,-500.0,0.00028219,5]
[401028494,1767888673237,-288.4519273,0.00028219,5]
[401028495,1767888673246,-500.0,0.00028219,5]
[401028496,1767888673256,-500.0,0.00028219,5]
[401028497,1767888673266,-500.0,0.00028219,5]
[401028498,1767888673276,-1284.28,0.00028219,5]
[401028499,1767888673286,-330.87410261,0.00028219,5]
[401028500,1767888673296,-516.95,0.00028219,5]
[401028501,1767888673306,-500.0,0.00028219,5]
[401028502,1767888673315,-521.18235265,0.00028219,5]
[401028503,1767888673328,-500.0,0.00028219,5]
[401028504,1767888673338,-1000.0,0.00028219,2]
[401028505,1767888673348,-500.0,0.00028219,5]
[401028506,1767888673358,-500.0,0.00028219,5]
[401028507,1767888673367,-335.76520057,0.00028219,5]
[401028508,1767888673378,-500.0,0.00028219,5]
[401028509,1767888673388,-625.95699594,0.00028219,5]
[401028510,1767888673399,-500.0,0.00028219,5]
[401028511,1767888673408,-500.0,0.00028219,5]
[401028512,1767888673418,-500.0,0.00028219,5]
[401028513,1767888673428,-500.0,0.00028219,5]
[401028514,1767888673439,-240.0,0.00028219,28]
[401028515,1767888673449,-438.0,0.0002822,2]
[401028516,1767888673460,-1200.0,0.00028226,7]
[401028517,1767888673470,-163.27,0.000283,7]
[401028518,1767888673480,-164.69,0.000283,7]
[401028519,1767888673490,-1502.08,0.000283,14]
[401028520,1767888673500,-875.15,0.000283,7]
[401028521,1767888673510,-438.0,0.00028357,2]
[401028522,1767888673520,-2373.26906487,0.00028405,2]
[401028523,1767888673529,-31110.0,0.00028465,2]
[401028524,1767888673539,-2466.0,0.00028467,2]
[401028525,1767888673549,-476.9,0.0002848,3]
[401028526,1767888673559,-3851.05736369,0.00028493,5]
[401028527,1767888673569,-500.0,0.00028493,5]
[401028528,1767888673579,-500.0,0.00028493,5]
[401028529,1767888673589,-521.89371347,0.00028493,5]
[401028530,1767888673608,-519.23665145,0.00028493,5]
[401028531,1767888673619,-500.0,0.00028493,5]
[401028532,1767888673629,-500.0,0.00028493,5]
[401028533,1767888673639,-500.0,0.00028493,5]
[401028534,1767888673649,-290.56921291,0.00028493,5]
[401028535,1767888673659,-500.0,0.00028493,5]
[401028536,1767888673669,-500.0,0.00028493,5]
[401028537,1767888673680,-500.0,0.00028493,5]
[401028538,1767888673872,-500.0,0.00028493,5]
[401028539,1767888673883,-500.0,0.00028493,5]
[401028540,1767888673893,-500.0,0.00028493,5]
[401028541,1767888673904,-500.0,0.00028493,5]
[401028542,1767888673914,-297.58,0.00028493,5]
[401028543,1767888673924,-497.96063553,0.00028493,5]
[401028544,1767888673934,-500.0,0.00028493,5]
[401028545,1767888673945,-500.0,0.00028493,2]
[401028546,1767888673955,-508.15643298,0.00028493,5]
[401028547,1767888673965,-500.0,0.00028493,5]
[401028548,1767888673975,-407.94840755,0.00028493,5]
[401028549,1767888673984,-500.0,0.00028493,5]
[401028550,1767888673994,-500.0,0.00028493,5]
[401028551,1767888674004,-349.35207242,0.00028493,5]